[Event "CCT Julius Baer-D2 2024"]
[Site "Online"]
[Date "2024.09.27"]
[Round "1"]
[White "Durarbayli, Vasif"]
[Black "Anton Guijarro, David"]
[Result "1-0"]
[ECO "B12"]
[WhiteElo "2626"]
[BlackElo "2665"]
[Annotator "ChessBase"]
[PlyCount "93"]
[EventDate "2024.09.25"]
[EventType "swiss"]
[EventCountry "NET"]
[SourceTitle "playchess.com"]
[Source "ChessBase"]
[SourceQuality "1"]
[TimeControl "600+2"]

1. e4 {[%emt 0:00:02]} c6 {[%emt 0:00:03]} 2. d4 {[%emt 0:00:03]} d5 {[%emt 0:00:01]} 3. e5 {[%emt 0:00:01]} Bf5 {[%emt 0:00:02]} 4. Nf3 {[%emt 0:00:00]} e6 {[%emt 0:00:01]} 5. Be2 {[%emt 0:00:01]} Nd7 {[%emt 0:00:01]} 6. Nbd2 {[%emt 0:00:16]} c5 {[%emt 0:00:06]} 7. c4 {[%emt 0:00:10]} Ne7 {[%emt 0:00:05]} 8. dxc5 {[%emt 0:00:55]} Nc6 {[%emt 0:00:35]} 9. cxd5 {[%emt 0:00:34]} exd5 {[%emt 0:00:00]} 10. Nb3 {[%emt 0:00:01]} Be4 {[%emt 0:01:05]} 11. Be3 {[%emt 0:00:49]} Be7 {[%emt 0:00:16]} 12. O-O {[%emt 0:00:35]} O-O {[%emt 0:00:04]} 13. Rc1 {[%emt 0:01:28]} Ndxe5 {[%emt 0:00:24]} 14. Nxe5 {[%emt 0:00:06]} Nxe5 {[%emt 0:00:00]} 15. Nd4 {[%emt 0:00:07]} Nc4 {[%emt 0:00:28]} 16. b4 {[%emt 0:00:50]} Nxe3 {[%emt 0:00:13]} 17. fxe3 {[%emt 0:00:00]} Bg5 {[%emt 0:01:04]} 18. Rc3 {[%emt 0:00:03]} Re8 {[%emt 0:00:02]} 19. Bf3 {[%emt 0:00:12]} Qe7 {[%emt 0:00:30]} 20. Kh1 {[%emt 0:00:37]} a6 {[%emt 0:00:39]} 21. a4 {[%emt 0:00:02]} g6 {[%emt 0:00:10]} 22. b5 {[%emt 0:00:31]} axb5 {[%emt 0:00:03]} 23. axb5 {[%emt 0:00:00]} Bxf3 {[%emt 0:00:51]} 24. Rxf3 {[%emt 0:00:10]} Bf6 {[%emt 0:00:25]} 25. h3 {[%emt 0:00:12]} Be5 {[%emt 0:00:29]} 26. Rf1 {[%emt 0:00:10]} Rac8 {[%emt 0:00:46]} 27. Qf3 {[%emt 0:00:23]} Red8 {[%emt 0:00:56]} 28. Rc2 {[%emt 0:00:32]} Qe8 {[%emt 0:01:13]} 29. b6 {[%emt 0:01:00]} Qd7 {[%emt 0:00:18]} 30. Rd1 {[%emt 0:00:11]} Bg7 {[%emt 0:00:04]} 31. Rdc1 {[%emt 0:00:15]} Re8 {[%emt 0:00:01]} 32. c6 {[%emt 0:00:07]} bxc6 {[%emt 0:00:00]} 33. Nxc6 {[%emt 0:00:00]} Kh8 {[%emt 0:00:03]} 34. Qf4 {[%emt 0:00:32]} h5 {[%emt 0:00:03]} 35. Nd4 {[%emt 0:00:07]} Rxc2 {[%emt 0:00:02]} 36. Rxc2 {[%emt 0:00:00]} Be5 {[%emt 0:00:02]} 37. Qf1 {[%emt 0:00:09]} Rb8 {[%emt 0:00:02]} 38. Rb2 {[%emt 0:00:01]} Qb7 {[%emt 0:00:07]} 39. Qb5 {[%emt 0:00:02]} Rc8 {[%emt 0:00:01]} 40. Rb1 {[%emt 0:00:01]} Kg7 {[%emt 0:00:02]} 41. Nf3 {[%emt 0:00:01]} Bf6 {[%emt 0:00:02]} 42. Nd4 {[%emt 0:00:05]} Be5 {[%emt 0:00:02]} 43. Nb3 {[%emt 0:00:01]} Rc2 {[%emt 0:00:04]} 44. Na5 {[%emt 0:00:05]} Qe7 {[%emt 0:00:01]} 45. Qxd5 {[%emt 0:00:01]} Bb8 {[%emt 0:00:03]} 46. Nc6 {[%emt 0:00:01]} Bg3 {[%emt 0:00:03]} 47. Nxe7 {[%emt 0:00:03]} 1-0

[Event "CCT Julius Baer-D2 2024"]
[Site "Online"]
[Date "2024.09.27"]
[Round "1"]
[White "Indjic, Aleksandar"]
[Black "Martinez Alcantara, Jose Eduardo"]
[Result "1/2-1/2"]
[ECO "E35"]
[WhiteElo "2611"]
[BlackElo "2607"]
[Annotator "ChessBase"]
[PlyCount "136"]
[EventDate "2024.09.25"]
[EventType "swiss"]
[EventCountry "NET"]
[SourceTitle "playchess.com"]
[Source "ChessBase"]
[SourceQuality "1"]
[TimeControl "600+2"]

1. d4 {[%emt 0:00:02]} Nf6 {[%emt 0:00:03]} 2. c4 {[%emt 0:00:02]} e6 {[%emt 0:00:01]} 3. Nc3 {[%emt 0:00:01]} Bb4 {[%emt 0:00:00]} 4. Qc2 {[%emt 0:00:00]} d5 {[%emt 0:00:03]} 5. cxd5 {[%emt 0:00:01]} exd5 {[%emt 0:00:01]} 6. Bg5 {[%emt 0:00:02]} h6 {[%emt 0:00:04]} 7. Bh4 {[%emt 0:00:01]} c6 {[%emt 0:00:04]} 8. e3 {[%emt 0:00:02]} Be7 {[%emt 0:00:03]} 9. Bd3 {[%emt 0:00:02]} Nbd7 {[%emt 0:00:08]} 10. Nge2 {[%emt 0:00:05]} Nh5 {[%emt 0:00:03]} 11. Bxe7 {[%emt 0:00:03]} Qxe7 {[%emt 0:00:00]} 12. g4 {[%emt 0:00:01]} Nhf6 {[%emt 0:00:02]} 13. h3 {[%emt 0:00:00]} Nb6 {[%emt 0:00:03]} 14. Ng3 {[%emt 0:00:05]} Bd7 {[%emt 0:00:07]} 15. a4 {[%emt 0:00:04]} Nc8 {[%emt 0:00:05]} 16. a5 {[%emt 0:00:03]} Nd6 {[%emt 0:00:13]} 17. Na4 {[%emt 0:00:02]} O-O {[%emt 0:00:20]} 18. Nc5 {[%emt 0:00:03]} Rfe8 {[%emt 0:00:01]} 19. Kf1 {[%emt 0:00:06]} Rad8 {[%emt 0:00:25]} 20. b4 {[%emt 0:00:24]} Bc8 {[%emt 0:00:03]} 21. Kg2 {[%emt 0:00:02]} a6 {[%emt 0:00:29]} 22. Rae1 {[%emt 0:00:02]} Nde4 {[%emt 0:00:10]} 23. f3 {[%emt 0:00:03]} Nxg3 {[%emt 0:00:26]} 24. Kxg3 {[%emt 0:00:00]} Nd7 {[%emt 0:00:01]} 25. Kg2 {[%emt 0:00:02]} Qd6 {[%emt 0:00:08]} 26. Qf2 {[%emt 0:00:02]} Nxc5 {[%emt 0:00:17]} 27. bxc5 {[%emt 0:00:01]} Qc7 {[%emt 0:00:00]} 28. Ra1 {[%emt 0:00:12]} Re7 {[%emt 0:00:02]} 29. Rhe1 {[%emt 0:00:01]} Rde8 {[%emt 0:00:01]} 30. Ra3 {[%emt 0:00:02]} Rf8 {[%emt 0:00:22]} 31. Qg3 {[%emt 0:00:02]} Qd8 {[%emt 0:00:01]} 32. f4 {[%emt 0:00:03]} f5 {[%emt 0:00:17]} 33. g5 {[%emt 0:00:01]} hxg5 {[%emt 0:00:00]} 34. Qxg5 {[%emt 0:00:01]} Qe8 {[%emt 0:00:01]} 35. Kf2 {[%emt 0:00:02]} Rf6 {[%emt 0:00:33]} 36. Rg1 {[%emt 0:00:03]} Kf8 {[%emt 0:00:02]} 37. Be2 {[%emt 0:00:08]} Rh6 {[%emt 0:00:13]} 38. h4 {[%emt 0:00:01]} Qf7 {[%emt 0:00:04]} 39. h5 {[%emt 0:00:02]} Qf6 {[%emt 0:00:26]} 40. Rg3 {[%emt 0:00:05]} Kf7 {[%emt 0:00:04]} 41. Ra1 {[%emt 0:00:02]} Kf8 {[%emt 0:00:19]} 42. Rag1 {[%emt 0:00:02]} Qf7 {[%emt 0:00:08]} 43. Qh4 {[%emt 0:00:04]} Qf6 {[%emt 0:00:07]} 44. Rg5 {[%emt 0:00:14]} Rf7 {[%emt 0:00:13]} 45. Qg3 {[%emt 0:00:02]} Re7 {[%emt 0:01:12]} 46. Rg6 {[%emt 0:00:03]} Rxg6 {[%emt 0:00:01]} 47. hxg6 {[%emt 0:00:03]} Ke8 {[%emt 0:00:06]} 48. Rh1 {[%emt 0:00:02]} Kd7 {[%emt 0:00:02]} 49. Rh8 {[%emt 0:00:10]} Kc7 {[%emt 0:00:04]} 50. Bd3 {[%emt 0:00:15]} Bd7 {[%emt 0:00:09]} 51. Qg5 {[%emt 0:00:04]} Qe6 {[%emt 0:00:01]} 52. Rh3 {[%emt 0:00:02]} Re8 {[%emt 0:00:01]} 53. Qg3 {[%emt 0:00:28]} Re7 {[%emt 0:00:03]} 54. Rh5 {[%emt 0:00:01]} Qf6 {[%emt 0:00:11]} 55. Rg5 {[%emt 0:00:03]} Re8 {[%emt 0:00:07]} 56. Qh3 {[%emt 0:00:02]} Kb8 {[%emt 0:00:31]} 57. Bxf5 {[%emt 0:00:06]} Rf8 {[%emt 0:00:01]} 58. Bxd7 {[%emt 0:00:45]} Qxg5 {[%emt 0:00:02]} 59. Qe6 {[%emt 0:00:01]} Qh4+ {[%emt 0:00:18]} 60. Ke2 {[%emt 0:00:01]} Qh2+ {[%emt 0:00:14]} 61. Kd3 {[%emt 0:00:04]} Qg1 {[%emt 0:00:07]} 62. Qd6+ {[%emt 0:00:07]} Ka7 {[%emt 0:00:03]} 63. Qxf8 {[%emt 0:00:05]} Qd1+ {[%emt 0:00:01]} 64. Kc3 {[%emt 0:00:01]} Qc1+ {[%emt 0:00:01]} 65. Kb3 {[%emt 0:00:01]} Qb1+ {[%emt 0:00:00]} 66. Kc3 {[%emt 0:00:01]} Qc1+ {[%emt 0:00:01]} 67. Kd3 {[%emt 0:00:01]} Qd1+ {[%emt 0:00:01]} 68. Kc3 {[%emt 0:00:01]} Qc1+ {[%emt 0:00:00]} 1/2-1/2

[Event "CCT Julius Baer-D2 2024"]
[Site "Online"]
[Date "2024.09.27"]
[Round "1"]
[White "Bortnyk, Olexandr"]
[Black "Daneshvar, Bardiya"]
[Result "0-1"]
[ECO "B50"]
[WhiteElo "2608"]
[BlackElo "2598"]
[Annotator "ChessBase"]
[PlyCount "106"]
[EventDate "2024.09.25"]
[EventType "swiss"]
[EventCountry "NET"]
[SourceTitle "playchess.com"]
[Source "ChessBase"]
[SourceQuality "1"]
[TimeControl "600+2"]

1. e4 {[%emt 0:00:07]} c5 {[%emt 0:00:04]} 2. Nf3 {[%emt 0:00:01]} d6 {[%emt 0:00:00]} 3. Bc4 {[%emt 0:00:01]} Nf6 {[%emt 0:00:01]} 4. d3 {[%emt 0:00:00]} Nc6 {[%emt 0:00:01]} 5. h3 {[%emt 0:00:06]} g6 {[%emt 0:00:02]} 6. c3 {[%emt 0:00:02]} Bg7 {[%emt 0:00:01]} 7. Bb3 {[%emt 0:00:01]} O-O {[%emt 0:00:02]} 8. O-O {[%emt 0:00:01]} b5 {[%emt 0:00:02]} 9. Qe2 {[%emt 0:00:06]} a5 {[%emt 0:00:12]} 10. Rd1 {[%emt 0:00:29]} a4 {[%emt 0:00:12]} 11. Bc2 {[%emt 0:00:01]} b4 {[%emt 0:00:01]} 12. d4 {[%emt 0:00:55]} bxc3 {[%emt 0:00:18]} 13. bxc3 {[%emt 0:00:13]} cxd4 {[%emt 0:00:02]} 14. cxd4 {[%emt 0:00:48]} Nb4 {[%emt 0:00:03]} 15. Na3 {[%emt 0:00:29]} Ba6 {[%emt 0:00:11]} 16. Qe1 {[%emt 0:00:04]} Nxc2 {[%emt 0:00:04]} 17. Nxc2 {[%emt 0:00:00]} Rc8 {[%emt 0:00:13]} 18. Nb4 {[%emt 0:00:04]} Bb7 {[%emt 0:00:08]} 19. e5 {[%emt 0:01:21]} Nd5 {[%emt 0:01:03]} 20. Nxd5 {[%emt 0:00:41]} Bxd5 {[%emt 0:00:00]} 21. Nh2 {[%emt 0:00:01]} Qd7 {[%emt 0:00:16]} 22. Ng4 {[%emt 0:00:06]} h5 {[%emt 0:00:04]} 23. Ne3 {[%emt 0:00:02]} Be4 {[%emt 0:00:10]} 24. Ba3 {[%emt 0:00:44]} dxe5 {[%emt 0:00:09]} 25. dxe5 {[%emt 0:00:05]} Qe6 {[%emt 0:00:01]} 26. f4 {[%emt 0:00:35]} g5 {[%emt 0:00:17]} 27. Qb4 {[%emt 0:01:05]} gxf4 {[%emt 0:00:14]} 28. Qxe4 {[%emt 0:00:02]} fxe3 {[%emt 0:00:03]} 29. Qxe3 {[%emt 0:00:04]} Qxe5 {[%emt 0:00:10]} 30. Qxe5 {[%emt 0:00:10]} Bxe5 {[%emt 0:00:00]} 31. Rab1 {[%emt 0:00:11]} Rfe8 {[%emt 0:00:27]} 32. Rb5 {[%emt 0:00:22]} f6 {[%emt 0:00:07]} 33. Rb7 {[%emt 0:00:16]} Kf7 {[%emt 0:00:31]} 34. Rdd7 {[%emt 0:00:10]} Rc2 {[%emt 0:00:01]} 35. Bxe7 {[%emt 0:00:25]} Ke6 {[%emt 0:00:37]} 36. Bb4 {[%emt 0:00:20]} Rxa2 {[%emt 0:00:04]} 37. Rd3 {[%emt 0:00:29]} Rc8 {[%emt 0:00:19]} 38. Re7+ {[%emt 0:00:23]} Kf5 {[%emt 0:00:02]} 39. Bd2 {[%emt 0:00:08]} Rcc2 {[%emt 0:00:24]} 40. g4+ {[%emt 0:00:08]} hxg4 {[%emt 0:00:08]} 41. hxg4+ {[%emt 0:00:00]} Kxg4 {[%emt 0:00:01]} 42. Red7 {[%emt 0:00:00]} a3 {[%emt 0:00:04]} 43. Kf1 {[%emt 0:00:09]} Ra1+ {[%emt 0:00:09]} 44. Ke2 {[%emt 0:00:03]} a2 {[%emt 0:00:09]} 45. Rg7+ {[%emt 0:00:01]} Kf5 {[%emt 0:00:01]} 46. Rf3+ {[%emt 0:00:01]} Ke6 {[%emt 0:00:02]} 47. Ra3 {[%emt 0:00:03]} Rb1 {[%emt 0:00:06]} 48. Kd3 {[%emt 0:00:02]} Rxd2+ {[%emt 0:00:02]} 49. Kxd2 {[%emt 0:00:01]} a1=Q {[%emt 0:00:00]} 50. Rxa1 {[%emt 0:00:01]} Rxa1 {[%emt 0:00:00]} 51. Rb7 {[%emt 0:00:01]} f5 {[%emt 0:00:02]} 52. Kd3 {[%emt 0:00:02]} Ra3+ {[%emt 0:00:02]} 53. Ke2 {[%emt 0:00:01]} f4 {[%emt 0:00:01]} 0-1

[Event "CCT Julius Baer-D2 2024"]
[Site "Online"]
[Date "2024.09.27"]
[Round "1"]
[White "Daneshvar, Bardiya"]
[Black "Bortnyk, Olexandr"]
[Result "1-0"]
[ECO "E91"]
[WhiteElo "2598"]
[BlackElo "2608"]
[Annotator "ChessBase"]
[PlyCount "63"]
[EventDate "2024.09.25"]
[EventType "swiss"]
[EventCountry "NET"]
[SourceTitle "playchess.com"]
[Source "ChessBase"]
[SourceQuality "1"]
[TimeControl "600+2"]

1. d4 {[%emt 0:00:02]} Nf6 {[%emt 0:00:04]} 2. c4 {[%emt 0:00:01]} b6 {[%emt 0:00:15]} 3. Nc3 {[%emt 0:00:01]} Bb7 {[%emt 0:00:00]} 4. Qc2 {[%emt 0:00:01]} g6 {[%emt 0:00:01]} 5. e4 {[%emt 0:00:01]} d6 {[%emt 0:00:00]} 6. Nf3 {[%emt 0:00:01]} Bg7 {[%emt 0:00:04]} 7. Be2 {[%emt 0:00:01]} O-O {[%emt 0:00:03]} 8. O-O {[%emt 0:00:01]} Nc6 {[%emt 0:00:00]} 9. d5 {[%emt 0:00:02]} Nb4 {[%emt 0:00:01]} 10. Qb1 {[%emt 0:00:07]} a5 {[%emt 0:00:01]} 11. Be3 {[%emt 0:00:11]} e6 {[%emt 0:00:10]} 12. Nd4 {[%emt 0:00:10]} exd5 {[%emt 0:00:03]} 13. cxd5 {[%emt 0:00:03]} Re8 {[%emt 0:00:04]} 14. a3 {[%emt 0:00:06]} Na6 {[%emt 0:00:01]} 15. Bb5 {[%emt 0:00:02]} Re7 {[%emt 0:00:07]} 16. Nc6 {[%emt 0:00:44]} Bxc6 {[%emt 0:00:04]} 17. Bxc6 {[%emt 0:00:00]} Rb8 {[%emt 0:00:05]} 18. f3 {[%emt 0:00:07]} Nc5 {[%emt 0:00:08]} 19. Qc2 {[%emt 0:00:06]} Ncd7 {[%emt 0:00:21]} 20. Kh1 {[%emt 0:00:04]} Ne5 {[%emt 0:00:04]} 21. Bb5 {[%emt 0:00:02]} Qc8 {[%emt 0:00:05]} 22. Rae1 {[%emt 0:00:14]} h5 {[%emt 0:00:22]} 23. Bg5 {[%emt 0:00:14]} Kh7 {[%emt 0:00:34]} 24. f4 {[%emt 0:00:51]} Ned7 {[%emt 0:00:11]} 25. e5 {[%emt 0:00:04]} Qe8 {[%emt 0:01:48]} 26. Bxf6 {[%emt 0:00:36]} Bxf6 {[%emt 0:00:04]} 27. Bxd7 {[%emt 0:00:01]} Qxd7 {[%emt 0:00:08]} 28. exf6 {[%emt 0:00:02]} Rxe1 {[%emt 0:00:02]} 29. Rxe1 {[%emt 0:00:00]} Qg4 {[%emt 0:00:03]} 30. Qe4 {[%emt 0:00:02]} h4 {[%emt 0:00:01]} 31. h3 {[%emt 0:00:01]} Qg3 {[%emt 0:00:01]} 32. Rf1 {[%emt 0:00:06]} 1-0

[Event "CCT Julius Baer-D2 2024"]
[Site "Online"]
[Date "2024.09.27"]
[Round "1"]
[White "Le, Tuan Minh"]
[Black "Sargsyan, Shant"]
[Result "1-0"]
[ECO "D02"]
[WhiteElo "2564"]
[BlackElo "2649"]
[Annotator "ChessBase"]
[PlyCount "93"]
[EventDate "2024.09.25"]
[EventType "swiss"]
[EventCountry "NET"]
[SourceTitle "playchess.com"]
[Source "ChessBase"]
[SourceQuality "1"]
[TimeControl "600+2"]

1. d4 {[%emt 0:00:03]} d5 {[%emt 0:00:03]} 2. Nf3 {[%emt 0:00:01]} Nf6 {[%emt 0:00:01]} 3. Bf4 {[%emt 0:00:01]} c5 {[%emt 0:00:01]} 4. c3 {[%emt 0:00:01]} Nc6 {[%emt 0:00:01]} 5. e3 {[%emt 0:00:01]} Qb6 {[%emt 0:00:01]} 6. Qc2 {[%emt 0:00:02]} Nh5 {[%emt 0:00:01]} 7. Be5 {[%emt 0:00:02]} f6 {[%emt 0:00:01]} 8. Bg3 {[%emt 0:00:04]} cxd4 {[%emt 0:00:03]} 9. exd4 {[%emt 0:00:02]} e5 {[%emt 0:00:05]} 10. dxe5 {[%emt 0:00:06]} Nxg3 {[%emt 0:00:01]} 11. hxg3 {[%emt 0:00:00]} fxe5 {[%emt 0:00:01]} 12. Nh4 {[%emt 0:00:30]} e4 {[%emt 0:01:14]} 13. Ng6 {[%emt 0:00:17]} Nb4 {[%emt 0:01:14]} 14. cxb4 {[%emt 0:00:03]} Qxg6 {[%emt 0:00:02]} 15. Nc3 {[%emt 0:00:01]} Be6 {[%emt 0:00:16]} 16. Rd1 {[%emt 0:00:03]} Rc8 {[%emt 0:01:44]} 17. Qa4+ {[%emt 0:00:15]} Bd7 {[%emt 0:00:53]} 18. Bb5 {[%emt 0:00:07]} Bc6 {[%emt 0:01:43]} 19. Rxd5 {[%emt 0:00:24]} Bd6 {[%emt 0:00:01]} 20. Qd1 {[%emt 0:05:10]} Rd8 {[%emt 0:00:52]} 21. Qh5 {[%emt 0:01:18]} Qxh5 {[%emt 0:00:08]} 22. Bxc6+ {[%emt 0:00:01]} bxc6 {[%emt 0:00:01]} 23. Rdxh5 {[%emt 0:00:00]} e3 {[%emt 0:00:40]} 24. fxe3 {[%emt 0:00:01]} h6 {[%emt 0:00:22]} 25. Rf5 {[%emt 0:00:01]} Bxb4 {[%emt 0:00:31]} 26. Ke2 {[%emt 0:00:02]} Bxc3 {[%emt 0:00:06]} 27. bxc3 {[%emt 0:00:00]} Rb8 {[%emt 0:00:01]} 28. a4 {[%emt 0:00:46]} Ke7 {[%emt 0:00:03]} 29. Rh4 {[%emt 0:00:02]} Ke6 {[%emt 0:00:16]} 30. Ra5 {[%emt 0:00:09]} Rb2+ {[%emt 0:00:03]} 31. Kf3 {[%emt 0:00:05]} g5 {[%emt 0:00:04]} 32. Re4+ {[%emt 0:00:02]} Kd6 {[%emt 0:00:00]} 33. Rd4+ {[%emt 0:00:14]} Ke6 {[%emt 0:00:02]} 34. Rc5 {[%emt 0:00:08]} Rc8 {[%emt 0:00:06]} 35. e4 {[%emt 0:00:07]} Rc2 {[%emt 0:00:18]} 36. e5 {[%emt 0:00:07]} h5 {[%emt 0:00:07]} 37. Rd6+ {[%emt 0:00:01]} Ke7 {[%emt 0:00:02]} 38. Rcxc6 {[%emt 0:00:06]} Rxc6 {[%emt 0:00:03]} 39. Rxc6 {[%emt 0:00:00]} g4+ {[%emt 0:00:00]} 40. Kf4 {[%emt 0:00:00]} Rxg2 {[%emt 0:00:01]} 41. Ra6 {[%emt 0:00:11]} Rf2+ {[%emt 0:00:03]} 42. Kg5 {[%emt 0:00:01]} Rf3 {[%emt 0:00:01]} 43. Kh4 {[%emt 0:00:08]} Rxc3 {[%emt 0:00:01]} 44. Rxa7+ {[%emt 0:00:02]} Ke6 {[%emt 0:00:01]} 45. a5 {[%emt 0:00:34]} Kxe5 {[%emt 0:00:04]} 46. a6 {[%emt 0:00:03]} Kf6 {[%emt 0:00:03]} 47. Rh7 {[%emt 0:00:05]} 1-0

[Event "CCT Julius Baer-D2 2024"]
[Site "Online"]
[Date "2024.09.27"]
[Round "1"]
[White "Madaminov, Mukhiddin"]
[Black "Bok, Benjamin"]
[Result "1-0"]
[ECO "C50"]
[WhiteElo "2512"]
[BlackElo "2596"]
[Annotator "ChessBase"]
[PlyCount "93"]
[EventDate "2024.09.25"]
[EventType "swiss"]
[EventCountry "NET"]
[SourceTitle "playchess.com"]
[Source "ChessBase"]
[SourceQuality "1"]
[TimeControl "600+2"]

1. e4 {[%emt 0:00:03]} e5 {[%emt 0:00:04]} 2. Nf3 {[%emt 0:00:02]} Nc6 {[%emt 0:00:01]} 3. Bc4 {[%emt 0:00:01]} Bc5 {[%emt 0:00:01]} 4. Nc3 {[%emt 0:00:02]} Nf6 {[%emt 0:00:03]} 5. d3 {[%emt 0:00:01]} h6 {[%emt 0:00:03]} 6. O-O {[%emt 0:00:03]} O-O {[%emt 0:00:12]} 7. a3 {[%emt 0:00:08]} a6 {[%emt 0:00:08]} 8. Be3 {[%emt 0:00:04]} d6 {[%emt 0:00:02]} 9. Bxc5 {[%emt 0:00:04]} dxc5 {[%emt 0:00:00]} 10. Nd5 {[%emt 0:00:01]} Be6 {[%emt 0:01:15]} 11. Ne3 {[%emt 0:00:04]} Bxc4 {[%emt 0:00:27]} 12. Nxc4 {[%emt 0:00:02]} Qe7 {[%emt 0:00:01]} 13. a4 {[%emt 0:00:07]} b5 {[%emt 0:00:14]} 14. Ne3 {[%emt 0:00:02]} Qe6 {[%emt 0:00:02]} 15. b3 {[%emt 0:00:05]} Nd4 {[%emt 0:00:31]} 16. Nd2 {[%emt 0:00:06]} Rfd8 {[%emt 0:00:04]} 17. Kh1 {[%emt 0:00:26]} Qd6 {[%emt 0:00:22]} 18. g3 {[%emt 0:00:21]} c6 {[%emt 0:00:48]} 19. Nf3 {[%emt 0:02:31]} Qe6 {[%emt 0:00:36]} 20. Nd2 {[%emt 0:00:24]} Qd6 {[%emt 0:01:53]} 21. Ra2 {[%emt 0:00:09]} Rd7 {[%emt 0:00:58]} 22. Kg2 {[%emt 0:00:11]} Rad8 {[%emt 0:00:13]} 23. Qa1 {[%emt 0:00:16]} h5 {[%emt 0:00:19]} 24. h3 {[%emt 0:00:10]} h4 {[%emt 0:00:17]} 25. axb5 {[%emt 0:00:03]} axb5 {[%emt 0:00:03]} 26. Nf3 {[%emt 0:00:09]} Nxf3 {[%emt 0:00:14]} 27. Kxf3 {[%emt 0:00:02]} hxg3 {[%emt 0:00:07]} 28. fxg3 {[%emt 0:00:16]} Qe6 {[%emt 0:00:02]} 29. g4 {[%emt 0:01:19]} Nh7 {[%emt 0:01:04]} 30. Kg3 {[%emt 0:00:28]} Qh6 {[%emt 0:00:04]} 31. Nf5 {[%emt 0:00:05]} Rxd3+ {[%emt 0:00:51]} 32. cxd3 {[%emt 0:00:28]} Rxd3+ {[%emt 0:00:00]} 33. Kf2 {[%emt 0:00:31]} Qxh3 {[%emt 0:00:03]} 34. Ra8+ {[%emt 0:00:09]} Nf8 {[%emt 0:00:01]} 35. Rxf8+ {[%emt 0:00:00]} Kh7 {[%emt 0:00:01]} 36. Ke2 {[%emt 0:00:09]} Kg6 {[%emt 0:00:07]} 37. Rg8 {[%emt 0:00:00]} Rd7 {[%emt 0:00:03]} 38. Rxg7+ {[%emt 0:00:10]} Kf6 {[%emt 0:00:00]} 39. Qb1 {[%emt 0:01:25]} Qg2+ {[%emt 0:00:03]} 40. Rf2 {[%emt 0:00:02]} Rd2+ {[%emt 0:00:01]} 41. Kxd2 {[%emt 0:00:01]} Qxf2+ {[%emt 0:00:00]} 42. Kc3 {[%emt 0:00:10]} b4+ {[%emt 0:00:04]} 43. Kc4 {[%emt 0:00:03]} Qd2 {[%emt 0:00:04]} 44. Kxc5 {[%emt 0:00:14]} Ke6 {[%emt 0:00:00]} 45. Qf1 {[%emt 0:00:10]} Qc2+ {[%emt 0:00:03]} 46. Qc4+ {[%emt 0:00:01]} Qxc4+ {[%emt 0:00:01]} 47. Kxc4 {[%emt 0:00:00]} 1-0

[Event "CCT Julius Baer-D2 2024"]
[Site "Online"]
[Date "2024.09.27"]
[Round "1.1"]
[White "So, Wesley"]
[Black "Yakubboev, Nodirbek"]
[Result "1-0"]
[ECO "C55"]
[WhiteElo "2826"]
[BlackElo "2668"]
[Annotator "TA"]
[PlyCount "69"]
[EventDate "2024.09.25"]
[EventType "swiss"]
[EventCountry "NET"]
[SourceTitle "playchess.com"]
[Source "ChessBase"]
[SourceQuality "1"]
[TimeControl "600+2"]

{[%evp 10,69,16,8,16,13,10,10,21,16,17,2,49,25,22,22,25,27,28,23,25,27,14,1,20,9,29,0,45,24,120,127,114,84,170,180,189,188,184,129,116,76,170,163,237,221,503,518,481,285,428,435,433,427,537,454,602,600,5685,2745,29988,29989]} 1. e4 {[%emt 0:00:10]} e5 {[%emt 0:02:20]} 2. Nf3 {[%emt 0:02:10]} Nc6 {[%emt 0:00:04]} 3. Bc4 {[%emt 0:00:01]} Nf6 {[%emt 0:00:02]} 4. d3 {[%emt 0:00:01]} Be7 {[%emt 0:00:01]} 5. Nc3 {[%emt 0:00:17]} d6 {[%emt 0:00:02]} 6. a3 {[%emt 0:00:01]} O-O {[%emt 0:00:03]} 7. Be3 {[%emt 0:00:02]} Be6 {[%emt 0:00:04]} 8. Ng5 {[%emt 0:00:01]} Bg4 {[%emt 0:01:22] The position is equal.} 9. Qd2 {[%emt 0:00:18]} h6 {[%emt 0:00:25]} 10. h3 {[%emt 0:00:15]} Bh5 {[%emt 0:00:38]} (10... Bc8 $11 11. Nf3 Be6) 11. Nf3 {[%emt 0:00:12]} (11. g4 $5) 11... Bxf3 {[%emt 0:00:03]} 12. gxf3 {[%emt 0:00:00]} Nd4 {[%emt 0:00:03]} 13. Bxd4 {[%emt 0:00:11]} exd4 {[%emt 0:00:09]} 14. Ne2 {[%emt 0:00:00][%cal Oh1g1]} d5 {[%emt 0:00:03]} 15. Ba2 {[%emt 0:00:03]} c5 {[%emt 0:01:30]} 16. O-O-O {[%emt 0:00:10]} b5 {[%emt 0:00:22]} 17. Rhg1 {[%emt 0:00:06]} Kh8 {[%emt 0:00:16]} 18. Qf4 {[%emt 0:01:49]} Qd7 {[%emt 0:00:53]} 19. h4 {[%emt 0:01:12]} Rae8 {[%emt 0:00:09] [#]} (19... Rab8 $11 {keeps the balance.}) 20. e5 $1 $40 {[%emt 0:00:24][%mdl 128] White has strong attack. White is more active.} Nh7 {[%emt 0:00:06]} 21. Qg3 {[%emt 0:00:07]} g6 {[%emt 0:00:55]} (21... Rg8 $16) 22. Nf4 $18 {[%emt 0:00:06] Threatens to win with e6.} Qf5 {[%emt 0:00:03]} 23. Bxd5 {[%emt 0:00:21]} Bd8 {[%emt 0:00:07][%cal Og6g5] [#]} 24. Bxf7 {[%emt 0:00:26]} Bg5 $16 {[%emt 0:00:17]} 25. hxg5 {[%emt 0:00:07]} (25. Bxe8 $2 Bxf4+ 26. Kb1 Bxg3 27. Bxg6 Qxg6 $19) 25... Qxf7 {[%emt 0:00:08]} (25... Rxf7 $16 {keeps fighting.} 26. Nh3 h5) 26. Nh3 $18 {[%emt 0:00:31]} Qa2 {[%emt 0:00:03]} (26... h5 {is a better defense.}) 27. gxh6 {[%emt 0:00:40]} Qa1+ $2 {[%emt 0:00:03]} (27... c4 {was called for.} 28. Qxg6 Qa1+ 29. Kd2 c3+ 30. bxc3 Qxc3+ 31. Ke2 Qxc2+ (31... Rxe5+ $2 {perishes.} 32. Kf1 $18) 32. Rd2 Rxe5+ 33. Kf1 Qc1+ 34. Kg2 Qxg1+ 35. Kxg1 Rg8) 28. Kd2 {[%emt 0:00:01]} Qxb2 {[%emt 0:00:01]} 29. f4 {[%emt 0:00:15]} ({Not} 29. Qxg6 Qc3+ 30. Kc1 Qxa3+ (30... Qa1+ 31. Kd2 $11) 31. Kb1 Qb4+ 32. Kc1 Qa3+ 33. Kb1 Qb4+ 34. Ka2 Qa5+ 35. Kb1 Qb4+ $11) (29. Rb1 $142 Qc3+ 30. Kd1) 29... Re6 {[%emt 0:00:30]} (29... Qc3+ $142 30. Ke2 Qxc2+ 31. Rd2 Qb3 32. Qxg6 Rg8) 30. Rb1 {[%emt 0:00:22]} Qc3+ {[%emt 0:00:08]} 31. Kd1 {[%emt 0:00:01]} Qxa3 {[%emt 0:00:03]} 32. Qg4 {[%emt 0:00:14]} Qa2 {[%emt 0:00:06]} 33. Rxb5 {[%emt 0:00:02]} Qd5 {[%emt 0:00:04] [#]} 34. f5 $1 {[%emt 0:00:07][%cal Bf4f5,Bf5g6][%mdl 32]} Rxe5 {[%emt 0:00:05]} (34... Qc6 35. fxg6) 35. fxg6 {[%emt 0:00:06] Weighted Error Value: White=0.24 (precise) /Black=0.61.  Mistake:       	White=2     	Black=7      Inaccurate:     	White=1     	Black=3      OK:         	White=15    	Black=5      Best:        	White=1     	Black=2      Strong:       	White=1     	---} 1-0